[Event "45th National Sub Junior 2019"]
[Site "Tiruchengode"]
[Date "2019.07.14"]
[Round "8.9"]
[White "Pranesh M"]
[Black "Vignesh, B."]
[Result "1/2-1/2"]
[ECO "C77"]
[WhiteElo "2343"]
[BlackElo "1806"]
[Annotator "ChessBase"]
[PlyCount "206"]
[EventDate "2019.07.09"]
[EventCountry "IND"]
[SourceTitle "playchess.com"]
[Source "ChessBase"]
[SourceQuality "1"]
[TimeControl "5400+30"]

1. e4 {[%emt 0:00:00]} e5 {[%emt 0:00:00]} 2. Nf3 {[%emt 0:00:00]} Nc6 {[%emt 0:00:18]} 3. Bb5 {[%emt 0:00:00]} a6 {[%emt 0:00:26]} 4. Ba4 {[%emt 0:00:00]} Nf6 {[%emt 0:00:19]} 5. O-O {[%emt 0:00:00]} Be7 {[%emt 0:00:45]} 6. d3 {[%emt 0:00:09]} d6 {[%emt 0:00:35]} 7. c3 {[%emt 0:00:21]} O-O {[%emt 0:00:10]} 8. Nbd2 {[%emt 0:00:16]} b5 {[%emt 0:09:44]} 9. Bc2 {[%emt 0:00:29]} d5 {[%emt 0:02:19]} 10. Qe2 {[%emt 0:02:52]} Bg4 {[%emt 0:01:26]} 11. h3 {[%emt 0:01:34]} Bh5 {[%emt 0:00:41]} 12. Re1 {[%emt 0:00:27]} d4 {[%emt 0:01:58]} 13. Nf1 {[%emt 0:06:48]} Bg6 {[%emt 0:07:31]} 14. Ng3 {[%emt 0:04:16]} Nh5 {[%emt 1:10:48]} 15. Nf5 {[%emt 0:03:35]} dxc3 {[%emt 0:00:00]} 16. bxc3 {[%emt 0:01:15]} Nf4 {[%emt 0:00:00]} 17. Bxf4 {[%emt 0:00:45]} exf4 {[%emt 0:00:00]} 18. Nxe7+ {[%emt 0:04:07]} Qxe7 {[%emt 0:00:00]} 19. Qd2 {[%emt 0:00:26]} Qa3 {[%emt 0:00:00]} 20. Bb3 {[%emt 0:08:51]} Rad8 {[%emt 0:00:00]} 21. Qxf4 {[%emt 0:04:54]} Rxd3 {[%emt 0:00:00]} 22. e5 {[%emt 0:01:12]} Nd8 {[%emt 0:00:00]} 23. Rac1 {[%emt 0:06:10]} c5 {[%emt 0:00:00]} 24. c4 {[%emt 0:10:01]} Ne6 {[%emt 0:00:00]} 25. Qh4 {[%emt 0:00:10]} b4 {[%emt 0:00:00]} 26. Qe7 {[%emt 0:03:03]} a5 {[%emt 0:00:00]} 27. Ng5 {[%emt 0:05:58]} Nxg5 {[%emt 0:00:00]} 28. Qxg5 {[%emt 0:00:13]} h6 {[%emt 0:00:00]} 29. Qf4 {[%emt 0:00:59]} Rd4 {[%emt 0:00:00]} 30. Qe3 {[%emt 0:00:51]} a4 {[%emt 0:00:00]} 31. Bc2 {[%emt 0:00:24]} Qxe3 {[%emt 0:00:00]} 32. fxe3 {[%emt 0:00:23]} Rd2 {[%emt 0:00:00]} 33. e4 {[%emt 0:06:19]} Rb8 {[%emt 0:07:56]} 34. Bxa4 {[%emt 0:02:11]} Rxa2 {[%emt 0:00:05]} 35. Bc6 {[%emt 0:00:31]} Rc8 {[%emt 0:01:42]} 36. Bd5 {[%emt 0:00:39]} Re8 {[%emt 0:01:17]} 37. Ra1 {[%emt 0:00:22]} Rxa1 {[%emt 0:00:00]} 38. Rxa1 {[%emt 0:00:02]} Rxe5 {[%emt 0:00:00]} 39. Ra5 {[%emt 0:00:25]} Bxe4 {[%emt 0:00:46]} 40. Bxe4 {[%emt 0:00:58]} Rxe4 {[%emt 0:00:02]} 41. Rxc5 {[%emt 0:00:04]} g6 {[%emt 0:00:08]} 42. Rc6 {[%emt 0:00:48]} Kg7 {[%emt 0:00:09]} 43. c5 {[%emt 0:00:05]} Rc4 {[%emt 0:00:17]} 44. Rb6 {[%emt 0:00:06]} Kf8 {[%emt 0:00:56]} 45. Rb7 {[%emt 0:00:21]} Rxc5 {[%emt 0:00:31]} 46. Rxb4 {[%emt 0:00:05]} Rc2 {[%emt 0:00:02]} 47. Kh2 {[%emt 0:00:10]} Rc3 {[%emt 0:00:15]} 48. Kg1 {[%emt 0:00:03]} Ke7 {[%emt 0:00:06]} 49. Rb6 {[%emt 0:00:06]} Rd3 {[%emt 0:00:05]} 50. Kf2 {[%emt 0:00:04]} Rd6 {[%emt 0:00:04]} 51. Rb3 {[%emt 0:00:27]} Ke6 {[%emt 0:00:09]} 52. Re3+ {[%emt 0:00:09]} Kf6 {[%emt 0:00:19]} 53. Rf3+ {[%emt 0:00:03]} Kg7 {[%emt 0:00:03]} 54. Ra3 {[%emt 0:00:07]} f5 {[%emt 0:00:04]} 55. h4 {[%emt 0:00:39]} g5 {[%emt 0:00:29]} 56. hxg5 {[%emt 0:00:04]} hxg5 {[%emt 0:00:04]} 57. Kf3 {[%emt 0:01:14]} Kf6 {[%emt 0:00:05]} 58. Rb3 {[%emt 0:00:58]} Ke5 {[%emt 0:00:10]} 59. Re3+ {[%emt 0:00:07]} Kd4 {[%emt 0:00:31]} 60. Re8 {[%emt 0:00:21]} Rc6 {[%emt 0:00:37]} 61. Rd8+ {[%emt 0:00:06]} Ke5 {[%emt 0:00:13]} 62. Re8+ {[%emt 0:00:54]} Kf6 {[%emt 0:00:02]} 63. Rf8+ {[%emt 0:00:13]} Kg6 {[%emt 0:00:08]} 64. Rg8+ {[%emt 0:00:06]} Kh6 {[%emt 0:00:04]} 65. Rh8+ {[%emt 0:00:54]} Kg7 {[%emt 0:00:01]} 66. Ra8 {[%emt 0:00:14]} Rc3+ {[%emt 0:00:05]} 67. Kf2 {[%emt 0:00:05]} Kg6 {[%emt 0:00:06]} 68. Ra4 {[%emt 0:04:40]} f4 {[%emt 0:00:07]} 69. Ra8 {[%emt 0:08:33]} Kf5 {[%emt 0:00:17]} 70. Rf8+ {[%emt 0:00:32]} Kg4 {[%emt 0:00:10]} 71. Rh8 {[%emt 0:00:07]} Rc2+ {[%emt 0:00:06]} 72. Kf1 {[%emt 0:00:11]} f3 {[%emt 0:02:01]} 73. gxf3+ {[%emt 0:00:12]} Kxf3 {[%emt 0:00:02]} 74. Rh3+ {[%emt 0:00:08]} Kf4 {[%emt 0:00:03]} 75. Ra3 {[%emt 0:00:11]} g4 {[%emt 0:00:10]} 76. Kg1 {[%emt 0:00:09]} Kg5 {[%emt 0:00:08]} 77. Rb3 {[%emt 0:00:07]} Kh4 {[%emt 0:00:04]} 78. Ra3 {[%emt 0:00:02]} Rc1+ {[%emt 0:00:13]} 79. Kg2 {[%emt 0:00:05]} Rc2+ {[%emt 0:00:18]} 80. Kg1 {[%emt 0:00:06]} g3 {[%emt 0:00:04]} 81. Ra8 {[%emt 0:00:03]} Kh3 {[%emt 0:00:47]} 82. Rh8+ {[%emt 0:00:04]} Kg4 {[%emt 0:00:03]} 83. Rg8+ {[%emt 0:00:03]} Kf3 {[%emt 0:00:08]} 84. Rf8+ {[%emt 0:00:14]} Kg4 {[%emt 0:00:05]} 85. Rg8+ {[%emt 0:00:08]} Kf4 {[%emt 0:00:12]} 86. Rf8+ {[%emt 0:00:04]} Ke4 {[%emt 0:00:09]} 87. Re8+ {[%emt 0:00:04]} Kf5 {[%emt 0:00:11]} 88. Rf8+ {[%emt 0:00:02]} Kg4 {[%emt 0:00:09]} 89. Rg8+ {[%emt 0:00:03]} Kf4 {[%emt 0:00:51]} 90. Rf8+ {[%emt 0:00:01]} Ke3 {[%emt 0:00:31]} 91. Re8+ {[%emt 0:00:02]} Kf3 {[%emt 0:00:10]} 92. Rf8+ {[%emt 0:00:02]} Kg4 {[%emt 0:00:09]} 93. Rg8+ {[%emt 0:00:02]} Kh3 {[%emt 0:00:13]} 94. Rh8+ {[%emt 0:00:03]} Kg4 {[%emt 0:00:25]} 95. Rg8+ {[%emt 0:00:02]} Kf4 {[%emt 0:00:05]} 96. Rf8+ {[%emt 0:00:05]} Ke4 {[%emt 0:00:04]} 97. Re8+ {[%emt 0:00:02]} Kd4 {[%emt 0:00:06]} 98. Rg8 {[%emt 0:00:05]} Ke4 {[%emt 0:00:05]} 99. Rxg3 {[%emt 0:00:04]} Kf4 {[%emt 0:00:05]} 100. Rb3 {[%emt 0:00:02]} Kg4 {[%emt 0:00:05]} 101. Kf1 {[%emt 0:00:03]} Kf4 {[%emt 0:00:07]} 102. Ke1 {[%emt 0:00:02]} Rh2 {[%emt 0:00:06]} 103. Kf1 {[%emt 0:00:02]} Ke5 {[%emt 0:00:44]} 1/2-1/2

[Event "45th National Sub Junior 2019"]
[Site "Tiruchengode"]
[Date "2019.07.14"]
[Round "8.10"]
[White "Soham Dey"]
[Black "Nikhil Magizhnan"]
[Result "1/2-1/2"]
[ECO "C02"]
[WhiteElo "1744"]
[BlackElo "2164"]
[Annotator "ChessBase"]
[PlyCount "61"]
[EventDate "2019.07.09"]
[EventCountry "IND"]
[SourceTitle "playchess.com"]
[Source "ChessBase"]
[SourceQuality "1"]
[TimeControl "5400+30"]

1. e4 {[%emt 0:00:00]} e6 {[%emt 0:00:00]} 2. d4 {[%emt 0:00:00]} d5 {[%emt 0:00:00]} 3. e5 {[%emt 0:00:00]} c5 {[%emt 0:00:00]} 4. c3 {[%emt 0:00:00]} Nc6 {[%emt 0:00:00]} 5. Nf3 {[%emt 0:00:00]} Qb6 {[%emt 0:00:15]} 6. Bd3 {[%emt 0:00:00]} Bd7 {[%emt 0:01:17]} 7. dxc5 {[%emt 0:00:03]} Bxc5 {[%emt 0:01:30]} 8. O-O {[%emt 0:00:06]} Qc7 {[%emt 0:00:47]} 9. Re1 {[%emt 0:00:05]} Nge7 {[%emt 0:00:56]} 10. b4 {[%emt 0:00:23]} Bb6 {[%emt 0:00:30]} 11. a4 {[%emt 0:00:04]} a6 {[%emt 0:03:28]} 12. Na3 {[%emt 0:00:06]} Ng6 {[%emt 0:01:28]} 13. Qe2 {[%emt 0:00:06]} O-O {[%emt 0:05:20]} 14. h4 {[%emt 0:00:24]} Rac8 {[%emt 0:13:16]} 15. h5 {[%emt 0:25:25]} Ngxe5 {[%emt 0:01:32]} 16. Nxe5 {[%emt 0:00:35]} Qxe5 {[%emt 0:04:07]} 17. Qxe5 {[%emt 0:03:32]} Nxe5 {[%emt 0:00:10]} 18. Rxe5 {[%emt 0:00:13]} Rxc3 {[%emt 0:00:26]} 19. Bf1 {[%emt 0:04:51]} Rfc8 {[%emt 0:05:11]} 20. Re1 {[%emt 0:10:49]} Bxa4 {[%emt 0:04:47]} 21. Bd2 {[%emt 0:04:13]} R3c7 {[%emt 0:09:04]} 22. b5 {[%emt 0:18:12]} axb5 {[%emt 0:17:19]} 23. Nxb5 {[%emt 0:00:16]} Bxb5 {[%emt 0:00:07]} 24. Bxb5 {[%emt 0:00:05]} Rc2 {[%emt 0:01:38]} 25. Rec1 {[%emt 0:00:13]} Rxc1+ {[%emt 0:01:38]} 26. Rxc1 {[%emt 0:00:06]} Rxc1+ {[%emt 0:01:11]} 27. Bxc1 {[%emt 0:03:38]} Bc5 {[%emt 0:01:00]} 28. Kf1 {[%emt 0:01:03]} h6 {[%emt 0:00:34]} 29. Ke2 {[%emt 0:00:19]} Kf8 {[%emt 0:00:18]} 30. f3 {[%emt 0:00:12]} Ke7 {[%emt 0:00:30]} 31. Kd3 {[%emt 0:00:10]} 1/2-1/2

[Event "45th National Sub Junior 2019"]
[Site "Tiruchengode"]
[Date "2019.07.15"]
[Round "9.2"]
[White "Pranav, V."]
[Black "Samant Aditya S"]
[Result "0-1"]
[ECO "B88"]
[WhiteElo "2312"]
[BlackElo "2296"]
[Annotator "RC"]
[PlyCount "152"]
[EventDate "2019.07.09"]
[EventCountry "IND"]
[SourceTitle "playchess.com"]
[Source "ChessBase"]
[SourceQuality "1"]
[TimeControl "5400+30"]

1. e4 {[%emt 0:00:42]} c5 {[%emt 0:00:00]} 2. Nf3 {[%emt 0:00:06]} d6 {[%emt 0:00:00]} 3. d4 {[%emt 0:00:09]} cxd4 {[%emt 0:00:00]} 4. Nxd4 {[%emt 0:00:07]} Nf6 {[%emt 0:00:00]} 5. Nc3 {[%emt 0:00:08]} Nc6 {[%emt 0:00:00]} 6. Bc4 {[%emt 0:00:08]} e6 {[%emt 0:00:05]} 7. Be3 {[%emt 0:00:22]} a6 {[%emt 0:00:11]} 8. Qe2 {[%emt 0:00:39]} Qc7 {[%emt 0:00:16]} 9. Bb3 {[%emt 0:00:14]} Na5 {[%emt 0:03:10]} 10. O-O {[%emt 0:08:51]} Be7 {[%emt 0:04:27]} 11. f4 {[%emt 0:03:15]} O-O {[%emt 0:03:17]} 12. a3 {[%emt 0:14:00]} Nxb3 {[%emt 0:02:26]} 13. cxb3 {[%emt 0:00:19]} b5 {[%emt 0:18:41]} 14. Rac1 {[%emt 0:03:03]} Qb7 {[%emt 0:01:38]} 15. e5 {[%emt 0:09:57]} dxe5 {[%emt 0:15:13]} 16. fxe5 {[%emt 0:00:18]} Nd7 {[%emt 0:00:23]} 17. Qh5 {[%emt 0:04:41]} g6 {[%emt 0:12:11]} 18. Qe2 {[%emt 0:01:24]} Bc5 {[%emt 0:02:35]} 19. b4 {[%emt 0:01:21]} Bb6 {[%emt 0:01:36]} 20. Kh1 {[%emt 0:02:09]} Nxe5 {[%emt 0:07:21]} 21. Bh6 {[%emt 0:05:46]} Bxd4 {[%emt 0:03:23]} 22. Bxf8 {[%emt 0:00:17]} Kxf8 {[%emt 0:02:58]} 23. Qd2 {[%emt 0:00:09]} Qb6 {[%emt 0:12:08]} 24. Rce1 {[%emt 0:02:39]} Nc4 {[%emt 0:03:22]} 25. Qh6+ {[%emt 0:02:42]} Kg8 {[%emt 0:01:14]} 26. Ne4 {[%emt 0:02:40]} Bg7 {[%emt 0:00:32]} 27. Qf4 {[%emt 0:00:25]} f5 {[%emt 0:01:00]} 28. Nc5 {[%emt 0:01:06]} Qd6 {[%emt 0:02:24]} 29. Qf3 {[%emt 0:00:53]} Qd5 {[%emt 0:00:14]} 30. Qf4 {[%emt 0:04:28]} Bb7 {[%emt 0:00:42]} 31. Nxb7 {[%emt 0:01:24]} Qxb7 {[%emt 0:00:04]} 32. Rxe6 {[%emt 0:00:07]} Nxb2 {[%emt 0:01:16]} 33. Qd6 {[%emt 0:01:24]} Nc4 {[%emt 0:00:24]} 34. Qd3 {[%emt 0:00:26]} Qf7 {[%emt 0:01:18]} 35. Rfe1 {[%emt 0:00:20]} Rf8 {[%emt 0:00:41]} 36. Rxa6 {[%emt 0:01:58]} Kh8 {[%emt 0:01:13]} 37. Rae6 {[%emt 0:01:53]} Bf6 {[%emt 0:00:37]} 38. Qd5 {[%emt 0:01:38]} Rd8 {[%emt 0:00:54]} 39. Qc6 {[%emt 0:00:33]} Kg7 {[%emt 0:00:41]} 40. h3 {[%emt 0:00:44]} Nxa3 {[%emt 0:00:38]} 41. Qc5 {[%emt 0:00:01]} Rd7 {[%emt 0:00:22]} 42. Ra6 {[%emt 0:01:35]} Nc4 {[%emt 0:00:18]} 43. Qxb5 {[%emt 0:04:10]} Nd6 {[%emt 0:00:25]} 44. Qa4 {[%emt 0:01:22]} Ne4 {[%emt 0:00:06]} 45. Qa2 {[%emt 0:00:09]} Qxa2 {[%emt 0:01:18]} 46. Rxa2 {[%emt 0:00:02]} Rb7 {[%emt 0:00:05]} 47. Ra4 {[%emt 0:00:05]} Nc3 {[%emt 0:00:20]} 48. Ra6 {[%emt 0:00:24]} Rxb4 {[%emt 0:00:05]} 49. Ra7+ {[%emt 0:01:33]} Kh6 {[%emt 0:00:09]} 50. Re6 {[%emt 0:00:01]} Ne4 {[%emt 0:00:54]} 51. g4 {[%emt 0:00:05]} fxg4 {[%emt 0:00:48]} 52. hxg4 {[%emt 0:00:04]} Nf2+ {[%emt 0:00:14]} 53. Kg2 {[%emt 0:00:03]} Nxg4 {[%emt 0:00:05]} 54. Kg3 {[%emt 0:00:14]} Be5+ {[%emt 0:00:55]} 55. Kh3 {[%emt 0:00:04]} Kg5 {[%emt 0:01:39]} 56. Kg2 {[%emt 0:00:19]} Rb2+ {[%emt 0:00:14]} 57. Kf1 {[%emt 0:00:12]} h5 {[%emt 0:00:41]} 58. Raa6 {[%emt 0:00:01]} Bf6 {[%emt 0:00:29]} 59. Ra5+ {[%emt 0:00:00]} Kh4 {[%emt 0:00:11]} 60. Ra4 {[%emt 0:00:02]} Rf2+ {[%emt 0:00:30]} 61. Kg1 {[%emt 0:00:09]} Rf5 {[%emt 0:00:23]} 62. Re2 {[%emt 0:00:29]} Be5 {[%emt 0:00:37]} 63. Kg2 {[%emt 0:00:27]} Bf4 {[%emt 0:00:54]} 64. Ree4 {[%emt 0:00:04]} Kg5 {[%emt 0:00:22]} 65. Ra6 {[%emt 0:00:05]} Rb5 {[%emt 0:00:28]} 66. Re2 {[%emt 0:00:10]} h4 {[%emt 0:00:37]} 67. Ra3 {[%emt 0:00:01]} Kf5 {[%emt 0:00:28]} 68. Kh3 {[%emt 0:00:17]} g5 {[%emt 0:00:29]} 69. Kg2 {[%emt 0:00:34]} Ne5 {[%emt 0:00:23]} 70. Rh3 {[%emt 0:00:12]} Kg4 {[%emt 0:00:27]} 71. Rc3 {[%emt 0:00:13]} Ng6 {[%emt 0:00:32]} 72. Re4 {[%emt 0:01:53]} h3+ {[%emt 0:00:14]} 73. Rxh3 {[%emt 0:00:47]} Rb2+ {[%emt 0:00:10]} 74. Kh1 {[%emt 0:00:02]} Kxh3 {[%emt 0:00:10]} 75. Re3+ {[%emt 0:00:01]} Bg3 {[%emt 0:00:29]} 76. Ra3 {[%emt 0:00:07]} Rb1# {[%emt 0:00:04]} 0-1

[Event "45th National Sub Junior 2019"]
[Site "Tiruchengode"]
[Date "2019.07.15"]
[Round "9.6"]
[White "Sanket Chakravarty"]
[Black "Devesh Anand Naik"]
[Result "1-0"]
[ECO "A14"]
[WhiteElo "2107"]
[BlackElo "1943"]
[Annotator "ChessBase"]
[PlyCount "45"]
[EventDate "2019.07.09"]
[EventCountry "IND"]
[SourceTitle "playchess.com"]
[Source "ChessBase"]
[SourceQuality "1"]
[TimeControl "5400+30"]

1. c4 {[%emt 0:00:00]} Nf6 {[%emt 0:00:00]} 2. g3 {[%emt 0:00:00]} e6 {[%emt 0:00:00]} 3. Bg2 {[%emt 0:00:00]} d5 {[%emt 0:00:00]} 4. Nf3 {[%emt 0:00:02]} Be7 {[%emt 0:00:00]} 5. O-O {[%emt 0:00:09]} O-O {[%emt 0:00:04]} 6. b3 {[%emt 0:00:17]} b6 {[%emt 0:00:28]} 7. Bb2 {[%emt 0:00:18]} Bb7 {[%emt 0:00:15]} 8. cxd5 {[%emt 0:00:29]} Nxd5 {[%emt 0:03:15]} 9. d4 {[%emt 0:00:34]} c5 {[%emt 0:02:35]} 10. Re1 {[%emt 0:01:57]} cxd4 {[%emt 0:01:09]} 11. Nxd4 {[%emt 0:00:13]} Nc6 {[%emt 0:03:19]} 12. e4 {[%emt 0:05:32]} Ndb4 {[%emt 0:03:26]} 13. Nxc6 {[%emt 0:06:34]} Bxc6 {[%emt 0:02:48]} 14. Qg4 {[%emt 0:04:10]} Bf6 {[%emt 0:04:23]} 15. e5 {[%emt 0:05:28]} Be7 {[%emt 0:00:43]} 16. Bxc6 {[%emt 0:00:17]} Nxc6 {[%emt 0:00:05]} 17. Nc3 {[%emt 0:01:23]} Bb4 {[%emt 0:07:31]} 18. Red1 {[%emt 0:02:47]} Qb8 {[%emt 0:03:01]} 19. Ne4 {[%emt 0:02:16]} Nxe5 {[%emt 0:06:46]} 20. Nf6+ {[%emt 0:03:02]} Kh8 {[%emt 0:00:21]} 21. Bxe5 {[%emt 0:08:21]} Qxe5 {[%emt 0:00:23]} 22. Nd7 {[%emt 0:00:08]} f5 {[%emt 0:01:24]} 23. Qxb4 {[%emt 0:00:09]} 1-0

[Event "45th National Sub Junior 2019"]
[Site "Tiruchengode"]
[Date "2019.07.15"]
[Round "9.7"]
[White "Srihari, L."]
[Black "Aditya Varun Gampa"]
[Result "1-0"]
[ECO "B53"]
[WhiteElo "2077"]
[BlackElo "1918"]
[Annotator "NA RC"]
[PlyCount "121"]
[EventDate "2019.07.09"]
[EventCountry "IND"]
[SourceTitle "playchess.com"]
[Source "ChessBase"]
[SourceQuality "1"]
[TimeControl "5400+30"]

1. e4 {[%emt 0:00:00]} c5 {[%emt 0:00:11]} 2. Nf3 {[%emt 0:00:00]} d6 {[%emt 0:00:10]} 3. d4 {[%emt 0:00:00]} cxd4 {[%emt 0:00:07]} 4. Qxd4 {[%emt 0:00:02]} Nc6 {[%emt 0:01:01]} 5. Bb5 {[%emt 0:00:03]} Bd7 {[%emt 0:00:27]} 6. Bxc6 {[%emt 0:00:30]} bxc6 {[%emt 0:01:12]} 7. O-O {[%emt 0:00:52]} Qb6 {[%emt 0:01:18] B53: Sicilian: 2...d6: Lines with Qxd4} 8. Qd3 {[%emt 0:01:17]} Nf6 {[%emt 0:06:16]} 9. c4 {[%emt 0:14:50]} g6 {[%emt 0:00:37]} 10. b3 {[%emt 0:01:47]} Bg7 {[%emt 0:11:03]} 11. Bb2 {[%emt 0:00:40]} O-O {[%emt 0:00:24]} 12. Nc3 {[%emt 0:01:43]} Be6 $146 {[%emt 0:05:22]} ({Predecessor:} 12... Rad8 13. Rad1 Bg4 14. h3 Bxf3 15. Qxf3 Nd7 16. Na4 {1-0 (52) Zhigalko,S (2647)-Iljin,T (2422) Alushta 2010}) 13. Nd4 {[%emt 0:07:56]} Nd7 {[%emt 0:16:31]} (13... Bd7 $11) 14. Na4 {[%emt 0:09:00]} Qc7 {[%emt 0:02:44]} 15. Nxe6 {[%emt 0:03:21]} fxe6 {[%emt 0:00:08]} 16. Bxg7 {[%emt 0:05:41]} Kxg7 {[%emt 0:00:02]} 17. f4 {[%emt 0:00:36]} Rf6 {[%emt 0:01:32]} 18. Rad1 {[%emt 0:06:09]} e5 {[%emt 0:01:49]} 19. f5 {[%emt 0:01:53]} Raf8 {[%emt 0:00:44]} 20. g4 {[%emt 0:00:35]} g5 {[%emt 0:04:47] [#]} 21. h4 $1 {[%emt 0:02:11]} gxh4 {[%emt 0:02:17]} 22. g5 {[%emt 0:00:29]} R6f7 {[%emt 0:00:21]} 23. Qh3 {[%emt 0:01:27]} h6 {[%emt 0:01:02]} 24. Qxh4 {[%emt 0:19:33]} hxg5 {[%emt 0:00:16]} 25. Qxg5+ {[%emt 0:00:17]} Kh8 {[%emt 0:00:22]} 26. Kf2 {[%emt 0:00:03]} Nf6 {[%emt 0:03:58]} 27. Qh6+ {[%emt 0:07:50]} Nh7 {[%emt 0:00:17]} 28. Ke2 {[%emt 0:01:17]} d5 {[%emt 0:00:58]} 29. Nc5 {[%emt 0:01:22]} Qa5 {[%emt 0:01:38]} 30. Ne6 {[%emt 0:00:19]} Qxa2+ {[%emt 0:00:48]} 31. Rd2 {[%emt 0:00:11]} Qxb3 {[%emt 0:00:05]} 32. Nxf8 {[%emt 0:03:05]} Qxc4+ {[%emt 0:00:12]} 33. Kf2 {[%emt 0:03:56]} Rxf8 {[%emt 0:00:40]} 34. Rh1 {[%emt 0:01:58]} Rf7 {[%emt 0:04:09]} 35. Rh4 {[%emt 0:04:48]} Rg7 {[%emt 0:02:53]} 36. Re2 {[%emt 0:01:16]} Qc5+ {[%emt 0:02:50]} 37. Qe3 {[%emt 0:00:41]} d4 {[%emt 0:00:28]} 38. Qd3 {[%emt 0:00:05]} Qc1 {[%emt 0:00:09]} 39. Re1 {[%emt 0:00:30]} Qg5 {[%emt 0:00:22]} 40. Reh1 {[%emt 0:00:53]} c5 {[%emt 0:02:45]} 41. Qb3 {[%emt 0:00:46]} Qd2+ {[%emt 0:01:24]} 42. Kf1 {[%emt 0:00:02]} Qb4 {[%emt 0:04:43]} 43. Qxb4 {[%emt 0:00:30]} cxb4 {[%emt 0:00:06]} 44. Ke2 {[%emt 0:00:11]} Kg8 $11 {[%emt 0:00:21]} 45. Rb1 {[%emt 0:01:07]} a5 {[%emt 0:00:07]} 46. Ra1 {[%emt 0:00:16]} Nf6 {[%emt 0:01:42]} 47. Rxa5 {[%emt 0:00:23]} Rg2+ {[%emt 0:00:36]} 48. Kf3 {[%emt 0:00:42]} Rc2 {[%emt 0:00:16]} 49. Rxe5 {[%emt 0:00:28]} Kf7 {[%emt 0:00:20]} 50. Rb5 {[%emt 0:00:17]} Rc3+ {[%emt 0:00:15]} 51. Kf4 {[%emt 0:00:33]} b3 {[%emt 0:06:02]} 52. e5 {[%emt 0:00:10]} d3 {[%emt 0:02:09]} 53. Ke3 {[%emt 0:00:15]} Ne8 {[%emt 0:02:23]} 54. Rh7+ {[%emt 0:00:07]} Kf8 {[%emt 0:00:13]} 55. Rh8+ {[%emt 0:00:05]} Kf7 {[%emt 0:00:16]} 56. e6+ {[%emt 0:00:02]} Kf6 {[%emt 0:00:07]} 57. Rf8+ {[%emt 0:00:12]} Kg5 {[%emt 0:00:09]} 58. f6+ {[%emt 0:00:11]} Kg4 {[%emt 0:00:15]} 59. Rg8+ {[%emt 0:00:24]} Kh4 {[%emt 0:00:06]} 60. f7 {[%emt 0:00:13]} Nd6 {[%emt 0:15:35]} 61. f8=Q {[%emt 0:00:20]} 1-0

[Event "45th National Sub Junior 2019"]
[Site "Tiruchengode"]
[Date "2019.07.15"]
[Round "9.8"]
[White "Arjun Gupta"]
[Black "Ilamparthi A R"]
[Result "1/2-1/2"]
[ECO "A48"]
[WhiteElo "1851"]
[BlackElo "2036"]
[Annotator "NA RC"]
[PlyCount "124"]
[EventDate "2019.07.09"]
[EventCountry "IND"]
[SourceTitle "playchess.com"]
[Source "ChessBase"]
[SourceQuality "1"]
[TimeControl "5400+30"]

1. d4 {[%emt 0:00:00]} Nf6 {[%emt 0:00:00]} 2. Bf4 {[%emt 0:00:00]} g6 {[%emt 0:00:03]} 3. e3 {[%emt 0:00:00]} Bg7 {[%emt 0:00:05]} 4. Nf3 {[%emt 0:00:00]} O-O {[%emt 0:00:15]} 5. Be2 {[%emt 0:00:00]} d6 {[%emt 0:00:22]} 6. h3 {[%emt 0:00:03]} b6 {[%emt 0:01:06]} 7. O-O {[%emt 0:00:10]} Bb7 {[%emt 0:00:16]} 8. a4 {[%emt 0:00:16]} a5 {[%emt 0:03:00]} 9. c3 {[%emt 0:00:21]} Nbd7 {[%emt 0:01:29]} 10. Nbd2 {[%emt 0:00:21]} Re8 {[%emt 0:04:18] A48: 1 d4 Nf6 2 Nf3 g6: Torre, London and Colle Systems} 11. Bh2 {[%emt 0:03:29]} e5 {[%emt 0:11:15]} 12. dxe5 {[%emt 0:00:45]} dxe5 {[%emt 0:00:16]} 13. Nc4 {[%emt 0:00:24] [#]} (13. Qc2 Qe7 14. Rfd1 Red8 15. Bg3 Ne8 16. Nc4 f6 17. Nfd2 Bf8 18. Rdb1 {0-1 (60) Cori Tello,J (2609)-Salgado Lopez,I (2662) Baku 2016}) 13... Nd5 $146 {[%emt 0:05:07]} ({Predecessor:} 13... Ne4 14. Qc2 Qe7 15. Rad1 Rad8 16. Rfe1 Ng5 17. Ncd2 Nc5 18. Nxg5 Qxg5 {½-½ (51) Tang,A (2475)-Zakhartsov,V (2539) Riga 2017}) 14. Qc2 {[%emt 0:02:12]} Qe7 {[%emt 0:06:08]} 15. Rfd1 {[%emt 0:04:15]} Rad8 {[%emt 0:03:02]} 16. Rd2 {[%emt 0:02:23]} f6 {[%emt 0:07:30]} 17. Rad1 {[%emt 0:09:33]} Nc5 {[%emt 0:01:06]} 18. Na3 {[%emt 0:01:30]} Kh8 {[%emt 0:10:22]} 19. Bc4 {[%emt 0:04:27]} c6 {[%emt 0:00:07]} 20. e4 {[%emt 0:01:29]} Nc7 {[%emt 0:02:38]} 21. h4 {[%emt 0:06:27]} h5 {[%emt 0:08:58]} 22. Rxd8 {[%emt 0:12:43]} Rxd8 {[%emt 0:00:01]} 23. Rxd8+ {[%emt 0:00:44]} Qxd8 {[%emt 0:00:01]} 24. Bf7 {[%emt 0:02:33]} Kh7 {[%emt 0:00:18]} 25. Bxe5 {[%emt 0:01:44]} fxe5 {[%emt 0:02:52]} 26. Ng5+ {[%emt 0:00:16]} Kh8 {[%emt 0:00:30] [#]} 27. Bxg6 $2 {[%emt 0:00:50]} (27. b4 $1 $16 {is forced if you want to stay better.}) 27... Qf6 {[%emt 0:01:10]} 28. Bxh5 {[%emt 0:00:37]} N7e6 {[%emt 0:02:18]} 29. Nxe6 {[%emt 0:04:32]} Qxe6 {[%emt 0:00:35]} 30. Be2 {[%emt 0:03:15]} Qe7 {[%emt 0:05:38]} 31. g3 {[%emt 0:02:37]} Bc8 {[%emt 0:04:24]} 32. Nc4 {[%emt 0:00:41]} Be6 {[%emt 0:01:29]} 33. b4 {[%emt 0:05:04]} axb4 {[%emt 0:00:24]} 34. cxb4 {[%emt 0:00:02]} Nd7 {[%emt 0:01:00]} 35. Qd2 {[%emt 0:01:51]} Bf8 {[%emt 0:01:20]} 36. b5 {[%emt 0:02:24]} cxb5 {[%emt 0:00:16]} 37. axb5 {[%emt 0:00:01]} Qc5 {[%emt 0:00:07]} 38. Ne3 {[%emt 0:04:46]} (38. Qg5 $11) 38... Nf6 {[%emt 0:04:23]} 39. Qd3 {[%emt 0:03:42] [#]} Be7 {[%emt 0:02:57]} (39... Qd4 $1 $17 40. Qxd4 exd4) 40. Kg2 {[%emt 0:02:44]} Ne8 {[%emt 0:02:20]} 41. Bg4 {[%emt 0:01:38]} Bf7 {[%emt 0:01:34]} 42. Nf5 {[%emt 0:01:08]} Bf8 {[%emt 0:01:56]} 43. Qd7 {[%emt 0:02:35]} Kg8 {[%emt 0:00:51]} 44. Ne3 {[%emt 0:02:14]} Nf6 {[%emt 0:00:51]} 45. Qf5 {[%emt 0:00:14]} Bg7 {[%emt 0:01:06]} 46. Bf3 {[%emt 0:01:24]} Qxb5 {[%emt 0:01:08]} 47. Qg5 {[%emt 0:01:36]} Nh7 {[%emt 0:02:13]} 48. Qd8+ {[%emt 0:00:06]} Bf8 $11 {[%emt 0:00:22]} 49. Ng4 {[%emt 0:00:35]} Qc5 {[%emt 0:01:22]} 50. Nh6+ {[%emt 0:04:10]} Kg7 {[%emt 0:00:01]} 51. Nxf7 {[%emt 0:00:01]} Kxf7 {[%emt 0:00:01]} 52. Qd7+ {[%emt 0:00:21]} Kg8 {[%emt 0:00:30]} 53. Bg4 {[%emt 0:01:36]} Qe7 {[%emt 0:00:31]} 54. Qc6 {[%emt 0:00:25]} Qd6 {[%emt 0:00:23]} 55. Qe8 {[%emt 0:01:14]} Qe7 {[%emt 0:01:51]} 56. Qg6+ {[%emt 0:01:04]} Kh8 {[%emt 0:00:08]} 57. Qxb6 {[%emt 0:00:15]} Nf6 {[%emt 0:00:26]} 58. Bf5 {[%emt 0:00:08]} Qg7 {[%emt 0:00:24]} 59. Qe6 {[%emt 0:01:43]} Qe7 {[%emt 0:00:10]} 60. Qxe7 {[%emt 0:00:13]} Bxe7 {[%emt 0:00:02]} 61. f4 {[%emt 0:01:12]} exf4 {[%emt 0:00:05]} 62. gxf4 {[%emt 0:00:06]} Nxe4 {[%emt 0:00:03]} 1/2-1/2